bitfinex-derivatives/quotes_BTCF0:USTF0_20260111
["timestamp","ask_amount","ask_price","bid_price","bid_amount"]
[1768139357064,0.09118453,90867.0,90860.0,0.01102]
[1768139359167,0.09103578,90868.0,90860.0,0.01102]
[1768139359466,0.18482453,90873.0,90860.0,0.01102]
[1768139359767,0.09118453,90872.0,90860.0,0.01102]
[1768139360368,0.09118453,90871.0,90860.0,0.01102]
[1768139360668,0.09118453,90870.0,90856.0,0.01102]
[1768139360867,0.09118453,90869.0,90851.0,0.19135959]
[1768139361467,0.09118453,90868.0,90851.0,0.09364]
[1768139361868,0.09118453,90868.0,90857.0,0.01102]
[1768139366866,0.09118453,90868.0,90856.0,0.01102]
[1768139367568,0.09118453,90868.0,90858.0,0.01102]
[1768139368567,0.09118453,90868.0,90851.0,0.09364]
[1768139368776,0.09118453,90868.0,90859.0,0.01102]
[1768139370375,0.09118453,90868.0,90860.0,0.01102]
[1768139373680,0.09118453,90868.0,90852.0,0.011021]
[1768139374379,0.09118453,90868.0,90860.0,0.01102]
[1768139383591,0.09855429,90867.0,90860.0,0.01102]
[1768139385292,0.09855429,90872.0,90851.0,0.28063781]
[1768139385589,0.104657,90883.0,90855.0,0.19801781]
[1768139385775,0.02802104,90882.0,90855.0,0.19801781]
[1768139385978,0.02802104,90881.0,90855.0,0.18699781]
[1768139386396,0.02802104,90881.0,90863.0,0.011019]
[1768139387073,0.09364,90883.0,90863.0,0.011019]
[1768139387278,0.02802164,90882.0,90863.0,0.011019]
[1768139387590,0.00894846,90876.0,90864.0,0.011019]
[1768139388489,0.00894846,90876.0,90865.0,0.011019]
[1768139389086,0.09364,90883.0,90861.0,0.28063781]
[1768139389292,0.0039537,90881.0,90861.0,0.28063781]
[1768139389589,0.0039537,90879.0,90861.0,0.183791]
[1768139389884,0.0039537,90879.0,90866.0,0.011019]
[1768139390090,0.0039537,90879.0,90868.0,0.011019]
[1768139395895,0.0039537,90879.0,90861.0,0.183791]
[1768139396096,0.09783143,90883.0,90871.0,0.011018]
[1768139397394,0.09783143,90883.0,90873.0,0.011018]
[1768139398395,0.00419426,90887.0,90873.0,0.011018]
[1768139398594,0.00419426,90887.0,90868.0,0.18699781]
[1768139398788,0.10226544,90890.0,90876.0,0.011018]
[1768139399184,0.10226544,90890.0,90878.0,0.011018]
[1768139400200,0.10226544,90890.0,90871.0,0.28063781]
[1768139400698,0.10226544,90890.0,90874.0,0.011018]
[1768139400894,0.00406461,90894.0,90878.0,0.011017]
[1768139402599,0.00406461,90894.0,90875.0,0.011018]
[1768139403100,0.00412955,90892.0,90872.0,0.18699781]
[1768139403601,0.00412955,90892.0,90873.0,0.011018]
[1768139404402,0.00412955,90892.0,90875.0,0.011018]
[1768139404995,0.00412955,90892.0,90877.0,0.011018]
[1768139405302,0.01514555,90892.0,90875.0,0.011018]
[1768139405902,0.00412955,90892.0,90877.0,0.011018]
[1768139406699,0.00412955,90892.0,90879.0,0.011017]
[1768139406896,0.00412955,90892.0,90873.0,0.18184669]
[1768139407097,0.00412955,90892.0,90880.0,0.011017]
[1768139408912,0.00412955,90892.0,90875.0,0.011018]
[1768139410306,0.011016,90891.0,90875.0,0.011018]
[1768139412209,0.011016,90889.0,90873.0,0.18184669]
[1768139413107,0.011016,90889.0,90874.0,0.18401498]
[1768139414908,0.00412955,90892.0,90874.0,0.18401498]
[1768139415098,0.011016,90889.0,90874.0,0.18401498]
[1768139415294,0.011016,90891.0,90874.0,0.18401498]
[1768139415508,0.011016,90891.0,90875.0,0.011018]
[1768139416009,0.011016,90889.0,90874.0,0.18401498]
[1768139416507,0.011016,90891.0,90875.0,0.011018]
[1768139416707,0.00412955,90892.0,90877.0,0.011018]
[1768139417804,0.011016,90893.0,90877.0,0.011018]
[1768139420905,0.011016,90893.0,90875.0,0.18401498]
[1768139421106,0.011016,90893.0,90876.0,0.08540499]
[1768139421501,0.104656,90895.0,90876.0,0.19503298]
[1768139421711,0.104656,90895.0,90877.0,0.08540499]
[1768139422012,0.011016,90893.0,90877.0,0.08540499]
[1768139422311,0.011016,90893.0,90877.0,0.18401498]
[1768139422513,0.104656,90895.0,90878.0,0.19503198]
[1768139422815,0.104656,90895.0,90884.0,0.08540499]
[1768139423014,0.09364,90895.0,90884.0,0.08540499]
[1768139424814,0.09364,90895.0,90885.0,0.08540499]
[1768139425005,0.09364,90895.0,90886.0,0.18401498]
[1768139425212,0.011015,90898.0,90886.0,0.08540499]
[1768139425914,0.011015,90901.0,90886.0,0.08540499]
[1768139426213,0.01336968,90901.0,90882.0,0.10962699]
[1768139426412,0.01336968,90901.0,90882.0,0.19503198]
[1768139428018,0.011015,90899.0,90882.0,0.19503198]
[1768139430020,0.00235468,90901.0,90884.0,0.011017]
[1768139430223,0.104655,90902.0,90885.0,0.08540499]
[1768139430521,0.104655,90902.0,90885.0,0.18401498]
[1768139431119,0.011015,90903.0,90888.0,0.18401498]
[1768139431443,0.011015,90901.0,90889.0,0.08540499]
[1768139432521,9e-08,90905.0,90889.0,0.08540499]
[1768139432710,0.02782269,90904.0,90889.0,0.08540499]
[1768139432911,0.02782269,90903.0,90889.0,0.08540499]
[1768139433123,0.011015,90900.0,90889.0,0.08540499]
[1768139434116,9e-08,90905.0,90889.0,0.08540499]
[1768139434312,0.02782194,90904.0,90889.0,0.08540499]
[1768139434510,9e-08,90905.0,90889.0,0.08540499]
[1768139434511,0.02782194,90903.0,90889.0,0.08540499]
[1768139434712,0.011015,90900.0,90889.0,0.08540499]
[1768139435723,0.011015,90898.0,90889.0,0.08540499]
[1768139437921,0.011015,90897.0,90889.0,0.08540499]
[1768139438326,0.011015,90896.0,90889.0,0.08540499]
[1768139438924,9e-08,90905.0,90890.0,0.1687037]
[1768139439123,0.02781857,90904.0,90890.0,0.1687037]
[1768139439326,9e-08,90905.0,90890.0,0.1687037]
[1768139439516,0.02781829,90904.0,90890.0,0.1687037]
[1768139439717,9e-08,90905.0,90890.0,0.07743407]
[1768139439916,0.011016,90895.0,90890.0,0.07743407]
[1768139442625,0.09364,90901.0,90891.0,0.07743407]
[1768139443128,0.09364,90901.0,90892.0,0.07743407]
[1768139443517,0.011015,90897.0,90892.0,0.07743407]
[1768139443917,0.011015,90897.0,90892.0,0.08858169]
[1768139445118,0.011015,90899.0,90892.0,0.08858169]
[1768139446922,9e-08,90905.0,90893.0,0.07743407]
[1768139447123,9e-08,90905.0,90896.0,0.1687037]
[1768139447328,9e-08,90905.0,90898.0,0.07743407]
[1768139447529,0.011015,90902.0,90898.0,0.07743407]
[1768139447930,0.011014,90904.0,90898.0,0.07743407]
[1768139448126,0.00241978,90918.0,90901.0,0.07743407]
[1768139448317,0.011014,90909.0,90902.0,0.05143407]
[1768139448718,0.011014,90907.0,90902.0,0.05143407]
[1768139449917,0.01343278,90918.0,90902.0,0.05143407]
[1768139450123,0.09364,90917.0,90902.0,0.05143407]
[1768139450328,0.011014,90907.0,90902.0,0.05143407]
[1768139450937,0.011014,90910.0,90902.0,0.05143407]
[1768139452636,0.00241978,90918.0,90904.0,0.07743407]
[1768139452936,0.0936,90917.0,90904.0,0.07743407]
[1768139453433,0.00241978,90918.0,90904.0,0.07743407]
[1768139453736,0.0936,90917.0,90904.0,0.07743407]
[1768139454832,0.01343278,90918.0,90904.0,7e-08]
[1768139455137,0.0936,90917.0,90904.0,7e-08]
[1768139455437,0.011014,90910.0,90904.0,7e-08]
[1768139456741,0.011014,90908.0,90896.0,0.14607314]
[1768139457039,0.011014,90908.0,90893.0,0.011016]
[1768139457441,0.011014,90907.0,90893.0,0.06175841]
[1768139457739,0.011014,90907.0,90890.0,0.011016]
[1768139458141,0.011014,90907.0,90890.0,0.07208592]
[1768139458541,0.011014,90907.0,90890.0,0.06106992]
[1768139458743,0.011014,90907.0,90892.0,0.1687037]
[1768139459040,0.011014,90907.0,90893.0,0.1687037]
[1768139459237,0.011014,90907.0,90899.0,0.09126963]
[1768139460547,0.011014,90907.0,90899.0,0.1687037]
[1768139461248,0.011014,90907.0,90900.0,0.09126963]
[1768139462841,0.011014,90906.0,90900.0,0.09126963]
[1768139463055,0.011013,90915.0,90901.0,0.09126963]
[1768139463351,0.011013,90915.0,90902.0,0.09126963]
[1768139464756,0.011013,90915.0,90903.0,0.0903416]
[1768139464949,0.011013,90913.0,90903.0,0.0903416]
[1768139465356,0.011013,90913.0,90903.0,0.16625605]
[1768139465658,0.011013,90913.0,90904.0,0.16625605]
[1768139466855,0.011014,90912.0,90904.0,0.16625605]
[1768139467053,0.0936,90914.0,90905.0,0.16625605]
[1768139467259,0.09360001,90918.0,90908.0,0.0903416]
[1768139467459,0.011013,90916.0,90908.0,0.0903416]
[1768139467654,0.10461301,90918.0,90908.0,0.0903416]
[1768139468259,0.011013,90917.0,90908.0,0.0903416]
[1768139468962,0.011013,90915.0,90908.0,0.0903416]
[1768139470060,0.011013,90915.0,90908.0,0.16338282]
[1768139470256,0.011013,90915.0,90909.0,0.09739677]
[1768139470567,0.011013,90915.0,90909.0,0.06539677]
[1768139470966,1e-08,90918.0,90909.0,0.06539677]
[1768139471265,0.011013,90914.0,90909.0,0.06539677]
[1768139471470,0.011013,90914.0,90909.0,0.13843799]
[1768139471965,0.011013,90913.0,90909.0,0.13843799]
[1768139473270,1e-08,90918.0,90909.0,0.13843799]
[1768139473768,0.011013,90913.0,90909.0,0.13843799]
[1768139474268,0.011014,90912.0,90909.0,9.9e-07]
[1768139474470,0.011014,90912.0,90900.0,0.06180692]
[1768139474670,0.011014,90912.0,90898.0,0.011015]
[1768139474871,1e-08,90918.0,90895.0,0.011015]
[1768139474872,0.011014,90911.0,90895.0,0.011015]
[1768139475168,0.011014,90911.0,90896.0,0.011015]
[1768139475956,0.011014,90911.0,90895.0,0.07251874]
[1768139476365,0.011014,90911.0,90899.0,0.07304122]
[1768139476570,0.011014,90911.0,90901.0,0.07304122]
[1768139477172,0.011013,90914.0,90904.0,0.09739677]
[1768139477367,1e-08,90918.0,90904.0,0.09739677]
[1768139478172,0.011013,90917.0,90904.0,0.09739677]
[1768139478472,1e-08,90918.0,90904.0,0.09739677]
[1768139478858,0.011013,90913.0,90904.0,0.09739677]
[1768139479066,0.011014,90911.0,90907.0,0.07304122]
[1768139479272,0.011013,90913.0,90907.0,0.17043799]
[1768139479676,1e-08,90918.0,90907.0,0.17043799]
[1768139480873,1e-08,90918.0,90895.0,0.07251774]
[1768139481676,0.011014,90907.0,90895.0,0.06150274]
[1768139481879,0.011013,90913.0,90894.0,0.0936]
[1768139482270,0.011013,90913.0,90894.0,0.104616]
[1768139482576,0.011013,90913.0,90894.0,0.16370241]
[1768139482775,0.011013,90913.0,90896.0,0.17043799]
[1768139482964,0.011013,90913.0,90897.0,0.09739677]
[1768139484079,0.011013,90915.0,90897.0,0.09739677]
[1768139484979,0.011013,90913.0,90897.0,0.09739677]
[1768139485570,0.011013,90913.0,90897.0,0.17043799]
[1768139487486,0.011013,90913.0,90898.0,0.07304122]
[1768139488081,0.011013,90913.0,90899.0,0.09739677]
[1768139488384,0.011013,90913.0,90899.0,0.17043799]
[1768139488681,0.011013,90913.0,90900.0,0.09739677]
[1768139488982,0.011013,90915.0,90900.0,0.09739677]
[1768139490183,1e-08,90918.0,90900.0,0.09739677]
[1768139490184,0.011013,90916.0,90900.0,0.10841177]
[1768139492483,0.011013,90916.0,90900.0,0.09739677]
[1768139494189,0.011013,90916.0,90900.0,0.17703076]
[1768139494581,0.011013,90915.0,90901.0,0.09639648]
[1768139494786,1e-08,90918.0,90901.0,0.09639648]
[1768139495086,0.011013,90915.0,90901.0,0.09639648]
[1768139498188,0.011013,90917.0,90903.0,0.09639648]
[1768139498378,0.011013,90916.0,90903.0,0.09639648]
[1768139498578,0.011013,90915.0,90903.0,0.09639648]
[1768139499984,0.011013,90913.0,90903.0,0.09639648]
[1768139503092,0.011014,90912.0,90903.0,0.09639648]
[1768139504797,1e-08,90918.0,90903.0,0.09639648]
[1768139505093,0.011014,90911.0,90903.0,0.09639648]
[1768139506095,0.011014,90910.0,90903.0,0.09639648]
[1768139507295,0.011014,90912.0,90903.0,0.09639648]
[1768139508393,0.011013,90914.0,90903.0,0.09639648]
[1768139512203,0.011013,90913.0,90903.0,0.09639648]
[1768139515608,0.011013,90916.0,90903.0,0.09639648]
[1768139515808,1e-08,90918.0,90903.0,0.09639648]
[1768139516008,0.011013,90913.0,90903.0,0.09639648]
[1768139517113,1e-08,90918.0,90903.0,0.09639648]
[1768139518912,0.011013,90914.0,90903.0,0.09639648]
[1768139521315,0.011013,90912.0,90903.0,0.09639648]
[1768139526322,1e-08,90918.0,90904.0,0.0909005]
[1768139526509,0.0721765,90917.0,90898.0,0.0909005]
[1768139526909,0.011014,90908.0,90898.0,0.0909005]
[1768139527907,0.011014,90907.0,90898.0,0.0909005]
[1768139535233,0.07220446,90914.0,90895.0,0.0936]
[1768139535537,0.011014,90906.0,90894.0,0.15039984]
[1768139535834,0.011014,90906.0,90895.0,0.09131343]
[1768139536336,0.011014,90908.0,90895.0,0.09131343]
[1768139537237,0.011014,90907.0,90895.0,0.09131343]
[1768139542340,0.011014,90909.0,90895.0,0.09131343]
[1768139544143,0.011013,90917.0,90902.0,0.16803682]
[1768139544441,0.011013,90917.0,90904.0,0.09131343]
[1768139544741,0.09360001,90918.0,90907.0,0.09131343]
[1768139545536,0.09360001,90918.0,90909.0,0.09131343]
[1768139545741,0.0936,90923.0,90909.0,0.09131343]
[1768139546445,0.011012,90922.0,90909.0,0.09131343]
[1768139546638,0.011012,90920.0,90909.0,0.09131343]
[1768139547233,0.0936,90923.0,90909.0,0.09131343]
[1768139548447,0.011013,90920.0,90909.0,0.09131343]
[1768139548941,0.011013,90917.0,90909.0,0.09131343]
[1768139549742,0.011013,90915.0,90909.0,0.09131343]
[1768139551934,0.0936,90923.0,90909.0,0.09131343]
[1768139553449,0.011013,90918.0,90909.0,0.09131343]
[1768139554451,0.011012,90920.0,90909.0,0.09131343]
[1768139554845,0.011012,90920.0,90909.0,0.15175285]
[1768139555045,0.011013,90918.0,90909.0,0.15175285]
[1768139555342,0.011012,90921.0,90910.0,0.09234012]
[1768139555545,0.0936,90926.0,90912.0,0.09234012]
[1768139555748,0.0722819,90933.0,90912.0,0.09234012]
[1768139556048,0.011013,90920.0,90912.0,0.09234012]
[1768139558051,0.011012,90923.0,90912.0,0.09234012]
[1768139558644,0.0936,90929.0,90915.0,0.09234012]
[1768139559356,0.011012,90923.0,90915.0,0.09234012]
[1768139560547,0.0722819,90933.0,90915.0,0.09234012]
[1768139560758,0.0936,90936.0,90922.0,0.09234012]
[1768139561453,0.0936,90936.0,90922.0,1.2e-07]
[1768139562151,0.011012,90928.0,90922.0,1.2e-07]
[1768139564456,0.011011,90931.0,90922.0,1.2e-07]
[1768139565046,0.011011,90929.0,90922.0,1.2e-07]
[1768139565242,0.011011,90929.0,90913.0,0.104613]
[1768139565243,0.0722819,90933.0,90913.0,0.0936]
[1768139565451,0.011012,90924.0,90913.0,0.0936]
[1768139565654,0.011011,90932.0,90916.0,0.08723676]
[1768139565858,0.0936,90936.0,90920.0,0.08723676]
[1768139566153,0.0936,90936.0,90921.0,0.08723676]
[1768139566359,0.0936,90936.0,90923.0,0.08723676]
[1768139567157,0.011011,90935.0,90923.0,0.08723676]
[1768139568959,0.01101,90938.0,90923.0,0.08723676]
[1768139570661,0.01101,90937.0,90923.0,0.08723676]
[1768139571860,0.01101,90937.0,90923.0,0.14721874]
[1768139572049,0.0722819,90942.0,90923.0,0.14721874]
[1768139572251,0.011011,90934.0,90923.0,0.14721874]
[1768139573561,0.011011,90937.0,90924.0,0.09234012]
[1768139574859,0.011011,90935.0,90924.0,0.09234012]
[1768139575361,0.011011,90934.0,90924.0,0.09234012]
[1768139578367,0.011011,90933.0,90924.0,0.09234012]
[1768139578561,0.011011,90932.0,90924.0,0.09234012]
[1768139580463,0.0936,90943.0,90930.0,0.09234012]
[1768139580856,1.31,90942.0,90930.0,0.09234012]
[1768139581257,0.01101,90940.0,90930.0,0.09234012]
[1768139582160,0.011011,90936.0,90930.0,0.09234012]
[1768139582566,0.01101,90939.0,90930.0,0.09234012]
[1768139583858,1.4036,90943.0,90930.0,0.09234012]
[1768139584057,0.01101,90937.0,90930.0,0.09234012]
[1768139589768,0.011011,90936.0,90930.0,0.09234012]
[1768139590157,1.4036,90943.0,90930.0,0.09234012]
[1768139590363,1.4036,90943.0,90925.0,0.09237843]
[1768139590564,0.01101,90941.0,90925.0,0.09237843]
[1768139590774,0.011011,90931.0,90923.0,0.15358198]
[1768139591076,0.011011,90931.0,90923.0,0.05998198]
[1768139591272,0.011011,90931.0,90921.0,0.1858703]
[1768139591781,0.011011,90931.0,90921.0,0.24524801]
[1768139592375,0.011011,90931.0,90921.0,0.15164801]
[1768139593968,0.08576037,90941.0,90921.0,0.24524801]
[1768139594873,0.08576037,90941.0,90922.0,0.08952627]
[1768139595371,0.011011,90935.0,90922.0,0.08952627]
[1768139595878,0.011011,90933.0,90922.0,0.08952627]
[1768139597080,0.011011,90936.0,90922.0,0.08952627]
[1768139597777,0.07475037,90934.0,90921.0,0.15297771]
[1768139597982,0.07475037,90934.0,90915.0,0.0936]
[1768139597983,0.011012,90927.0,90915.0,0.0936]
[1768139598282,0.011012,90927.0,90915.0,0.15312104]
[1768139599583,0.07475037,90931.0,90915.0,0.15312104]
[1768139599784,0.011012,90926.0,90915.0,0.15312104]
[1768139600282,0.07475037,90930.0,90915.0,0.15312104]
[1768139600485,0.011012,90922.0,90915.0,0.15312104]
[1768139603580,0.011012,90924.0,90915.0,0.15312104]
[1768139609896,0.011012,90924.0,90915.0,0.24562759]
[1768139610193,0.011012,90921.0,90915.0,0.24562759]
[1768139610397,0.011011,90929.0,90915.0,0.24562759]
[1768139610698,0.011012,90922.0,90915.0,0.24562759]
[1768139611294,0.011011,90929.0,90915.0,0.24562759]
[1768139612098,0.011012,90921.0,90915.0,0.24562759]
[1768139613995,0.011012,90923.0,90915.0,0.24562759]
[1768139615598,0.011012,90921.0,90915.0,0.24562759]
[1768139616297,0.011013,90920.0,90915.0,0.24562759]
[1768139616503,0.011013,90919.0,90915.0,0.15312104]
[1768139616690,0.00846001,90919.0,90915.0,0.15312104]
[1768139616998,0.00590702,90919.0,90915.0,0.15312104]
[1768139617299,0.00590702,90919.0,90915.0,0.24634244]
[1768139618303,0.011012,90928.0,90915.0,0.24634244]
[1768139619103,0.011012,90921.0,90915.0,0.24634244]
[1768139619498,0.011012,90921.0,90916.0,0.09324253]
[1768139621901,0.011012,90923.0,90916.0,0.09324253]
[1768139624802,0.011012,90925.0,90916.0,0.09324253]
[1768139634211,0.07822594,90933.0,90916.0,0.09324253]
[1768139635412,0.011012,90925.0,90916.0,0.09324253]
[1768139636914,0.011012,90924.0,90916.0,0.09324253]
[1768139637214,0.06721494,90931.0,90915.0,0.15312104]
[1768139637511,0.011013,90920.0,90915.0,0.15312104]
[1768139637712,0.00846001,90920.0,90915.0,0.15312104]
[1768139638016,0.011011,90930.0,90915.0,0.24795878]
[1768139638313,0.011012,90921.0,90915.0,0.24795878]
[1768139639717,0.011013,90920.0,90915.0,0.24795878]
[1768139640012,0.00846001,90920.0,90915.0,0.24795878]
[1768139640215,0.00846001,90920.0,90915.0,0.15435878]
[1768139641005,0.011013,90919.0,90915.0,0.15435878]
[1768139641408,0.00846001,90917.0,90915.0,4e-08]
[1768139641611,0.011012,90926.0,90909.0,0.09462884]
[1768139642114,0.011012,90926.0,90909.0,0.15535897]
[1768139642420,0.011012,90926.0,90910.0,0.09463284]
[1768139642612,0.06721494,90929.0,90910.0,0.09463284]
[1768139643417,0.011013,90920.0,90910.0,0.09463284]
[1768139644117,0.00590702,90920.0,90910.0,0.09463284]
[1768139644320,0.06466195,90929.0,90910.0,0.09463284]
[1768139644510,0.011013,90920.0,90910.0,0.09463284]
[1768139645221,0.00846001,90920.0,90910.0,0.09463284]
[1768139645419,0.06466195,90929.0,90910.0,0.09463284]
[1768139645621,0.011013,90920.0,90910.0,0.09463284]
[1768139646321,0.011013,90918.0,90909.0,0.06073013]
[1768139646511,0.00846001,90918.0,90910.0,0.09078999]
[1768139646711,0.011012,90921.0,90910.0,0.09078999]
[1768139646919,0.011012,90926.0,90910.0,0.09078999]
[1768139647623,0.06875519,90927.0,90910.0,0.09078999]
[1768139647815,0.011012,90922.0,90910.0,0.09078999]
[1768139650720,0.011012,90921.0,90910.0,0.09078999]
[1768139662813,0.011013,90920.0,90910.0,0.09078999]
[1768139663730,0.011013,90918.0,90910.0,0.09078999]
[1768139663931,0.011013,90916.0,90910.0,0.09078999]
[1768139664221,0.011013,90918.0,90910.0,0.09078999]
[1768139667730,0.09356,90925.0,90910.0,0.09078999]
[1768139667922,0.011013,90919.0,90910.0,0.09078999]
[1768139673031,0.011012,90921.0,90910.0,0.09078999]
[1768139673634,0.011013,90920.0,90910.0,0.09078999]
[1768139681039,0.011012,90922.0,90910.0,0.09078999]
[1768139681944,0.09356,90925.0,90910.0,0.09078999]
[1768139682132,0.011013,90916.0,90910.0,0.09078999]
[1768139682529,0.011013,90918.0,90910.0,0.09078999]
[1768139688343,0.09356,90925.0,90910.0,0.09078999]
[1768139689254,0.011012,90921.0,90910.0,0.09078999]
[1768139689436,0.011013,90920.0,90910.0,0.09078999]
[1768139690349,0.011013,90918.0,90910.0,0.09078999]
[1768139693753,0.09356,90925.0,90910.0,0.09078999]
[1768139693940,0.054973,91072.0,90913.0,0.00826249]
[1768139693941,0.011011,90929.0,90913.0,0.00826249]
[1768139694151,0.0936,90928.0,90918.0,0.00826249]
[1768139695146,0.011012,90927.0,90918.0,0.00826249]
[1768139696757,0.011012,90926.0,90918.0,0.00826249]
[1768139696963,0.011012,90924.0,90913.0,0.01050183]
[1768139697560,0.011012,90923.0,90913.0,0.01050183]
[1768139701161,0.011012,90926.0,90913.0,0.01050183]
[1768139703662,0.0936,90928.0,90913.0,0.01050183]
[1768139703864,0.011012,90924.0,90913.0,0.01050183]
[1768139707059,0.0936,90928.0,90913.0,0.01050183]
[1768139707264,0.0936,90928.0,90916.0,0.01296053]
[1768139708371,0.0936,90928.0,90915.0,0.011013]
[1768139710967,0.011011,90930.0,90915.0,0.011013]
[1768139711269,0.104611,90930.0,90915.0,0.011013]
[1768139712470,0.0936,90930.0,90914.0,0.011013]
[1768139712669,0.0936,90930.0,90913.0,0.01304287]
[1768139714268,0.011012,90928.0,90913.0,0.02405587]
[1768139715072,0.011012,90928.0,90914.0,0.011013]
[1768139718074,0.011012,90928.0,90913.0,0.01304287]
[1768139718075,0.0936,90930.0,90915.0,0.011013]
[1768139719673,0.0936,90930.0,90916.0,0.011013]
[1768139722172,0.104611,90930.0,90916.0,0.011013]
[1768139722374,0.27628375,90930.0,90916.0,0.011013]
[1768139723975,0.26527275,90930.0,90910.0,0.01444685]
[1768139724869,0.08283219,90929.0,90913.0,0.011013]
[1768139725076,0.08283219,90929.0,90914.0,0.011013]
[1768139725275,0.18268375,90929.0,90914.0,0.011013]
[1768139726080,0.17167275,90928.0,90914.0,0.011013]
[1768139730686,0.17167275,90927.0,90913.0,0.011013]
[1768139730874,0.17167275,90926.0,90911.0,0.011014]
[1768139731074,0.17167275,90926.0,90912.0,0.011013]
[1768139731279,0.17167275,90925.0,90909.0,0.011014]
[1768139731477,0.17167275,90925.0,90910.0,0.011014]
[1768139732682,0.17167275,90924.0,90910.0,0.011014]
[1768139737578,0.06794544,90923.0,90906.0,0.06099053]
[1768139737784,0.15977426,90921.0,90903.0,0.62529757]
[1768139738279,0.15977426,90921.0,90905.0,0.06709913]
[1768139738480,0.15977426,90921.0,90909.0,0.011014]
[1768139745295,0.15977426,90920.0,90909.0,0.011014]
[1768139747196,0.15977426,90920.0,90910.0,0.011014]
[1768139748700,0.011012,90926.0,90910.0,0.011014]
[1768139750802,0.06794544,90923.0,90910.0,0.011014]
[1768139751102,0.09182882,90922.0,90910.0,0.011014]
[1768139756908,0.15977426,90922.0,90910.0,0.011014]
[1768139757821,0.09182882,90921.0,90910.0,0.011014]
[1768139758031,0.09182882,90921.0,90911.0,0.011013]
[1768139763234,0.09182882,90921.0,90905.0,0.06709913]
[1768139764435,0.09182882,90921.0,90911.0,0.011013]
[1768139773447,0.16296833,90921.0,90911.0,0.011013]
[1768139774848,0.09740479,90920.0,90911.0,0.011013]
[1768139775051,0.09740479,90920.0,90912.0,0.011013]
[1768139779154,0.09740479,90920.0,90905.0,0.06709913]
[1768139779451,0.09740479,90920.0,90911.0,0.011013]
[1768139780152,0.03992999,90920.0,90911.0,0.011013]
[1768139780344,0.07113951,90920.0,90909.0,0.011014]
[1768139782259,0.09740479,90919.0,90909.0,0.011014]
[1768139782553,0.09740479,90917.0,90909.0,0.011014]
[1768139782854,0.1685443,90917.0,90909.0,0.011014]
[1768139783055,0.09740479,90916.0,90906.0,0.011014]
[1768139783654,0.09740479,90916.0,90907.0,0.011014]
[1768139785360,0.09485163,90916.0,90907.0,0.011014]
[1768139788363,0.09229847,90916.0,90907.0,0.011014]
[1768139788663,0.16088482,90916.0,90907.0,0.011014]
[1768139788961,0.16088482,90916.0,90909.0,0.011014]
[1768139790464,0.16088482,90916.0,90907.0,0.011014]
[1768139790869,0.09740479,90914.0,90907.0,0.011014]
[1768139791056,0.01358674,90914.0,90907.0,0.011014]
[1768139791467,0.00845667,90914.0,90907.0,0.011014]
[1768139791973,0.07113951,90915.0,90907.0,0.011014]
[1768139797378,0.07113951,90915.0,90908.0,0.011014]
[1768139798680,0.16964464,90913.0,90905.0,0.06709913]
[1768139798870,0.10906329,90913.0,90905.0,0.06709913]
[1768139799071,0.011012,90925.0,90908.0,0.011014]
[1768139799273,0.011012,90927.0,90908.0,0.011014]
[1768139800477,0.011012,90927.0,90905.0,0.06709913]
[1768139800478,0.011011,90929.0,90905.0,0.06709913]
[1768139800673,0.011012,90927.0,90900.0,0.09912942]
[1768139800879,0.011013,90914.0,90894.0,0.0936]
[1768139801068,0.09552004,90904.0,90894.0,0.0844336]
[1768139801270,0.09552004,90904.0,90894.0,0.07499707]
[1768139801480,0.09552004,90904.0,90896.0,0.011015]
[1768139801674,0.09552004,90904.0,90894.0,0.06606791]
[1768139801869,0.09552004,90904.0,90898.0,0.00680376]
[1768139802071,0.09552004,90904.0,90894.0,0.05764219]
[1768139802273,0.09552004,90904.0,90894.0,0.04919547]
[1768139802482,0.09552004,90904.0,90894.0,0.04073821]
[1768139802683,0.09552004,90904.0,90894.0,0.03227089]
[1768139802981,0.09552004,90904.0,90894.0,0.01955154]
[1768139803283,0.09552004,90904.0,90894.0,0.01530645]
[1768139803482,0.0741246,90905.0,90892.0,0.10135456]
[1768139803483,0.16964464,90902.0,90892.0,0.01117955]
[1768139803685,0.09552004,90900.0,90890.0,0.0936]
[1768139804283,0.09552004,90900.0,90890.0,0.10490565]
[1768139804680,0.0741246,90901.0,90894.0,0.011016]
[1768139805184,0.0741246,90901.0,90894.0,0.00682546]
[1768139806083,0.0741246,90901.0,90890.0,0.10490565]
[1768139806386,0.0741246,90901.0,90893.0,0.00684094]
[1768139808174,0.0741246,90901.0,90894.0,0.011016]
[1768139813789,0.0741246,90901.0,90896.0,0.011015]
[1768139814391,0.0741246,90901.0,90890.0,0.10490565]
[1768139815391,0.0741246,90901.0,90895.0,0.011015]
[1768139815692,0.0741246,90901.0,90896.0,0.011015]
[1768139817388,0.0741246,90908.0,90896.0,0.011015]
[1768139817591,0.0741246,90894.0,90879.0,0.01076807]
[1768139817809,0.05859927,90893.0,90874.0,0.011018]
[1768139818094,0.05859927,90890.0,90874.0,0.01131448]
[1768139818295,0.05859927,90890.0,90872.0,0.011018]
[1768139818591,0.05859927,90890.0,90874.0,0.011018]
[1768139819092,0.05859927,90890.0,90876.0,0.011018]
[1768139820184,0.05859927,90890.0,90874.0,0.01079898]
[1768139820384,0.05859927,90890.0,90872.0,0.011018]
[1768139820694,0.011014,90912.0,90872.0,0.011018]
[1768139820695,0.0936,90892.0,90876.0,0.011018]
[1768139821291,0.0936,90892.0,90874.0,0.011018]
[1768139822097,0.0936,90892.0,90872.0,0.08272047]
[1768139822393,0.08405569,90886.0,90866.0,0.011019]
[1768139822591,0.08405569,90886.0,90862.0,0.1650522]
[1768139822788,0.08405569,90886.0,90863.0,0.19250277]
[1768139823292,0.08405569,90886.0,90865.0,0.011019]
[1768139823490,0.07303869,90886.0,90863.0,0.19240204]
[1768139823794,0.08405569,90886.0,90866.0,0.011019]
[1768139825593,0.00190662,90885.0,90866.0,0.011019]
[1768139827191,0.00190662,90883.0,90866.0,0.011019]
[1768139827585,0.00190662,90883.0,90863.0,0.08237047]
[1768139827986,0.00190662,90883.0,90867.0,0.011019]
[1768139828387,0.00190811,90879.0,90867.0,0.011019]
[1768139828793,0.00190811,90879.0,90864.0,0.011019]
[1768139829697,0.00190811,90879.0,90863.0,0.01091827]
[1768139829902,0.00190811,90879.0,90862.0,0.011019]
[1768139830091,0.00063621,90878.0,90860.0,0.1048798]